bitfinex/quotes_ETHUSD_20260313
["timestamp","ask_amount","ask_price","bid_price","bid_amount"]
[1773399928828,0.002,2126.5,2126.1,2.7438237]
[1773399929312,0.002,2126.5,2126.1,2.92284776]
[1773399929642,1.17764539,2126.5,2126.1,2.92284776]
[1773399929835,1.17764539,2126.5,2126.1,1.74702406]
[1773399930129,1.17764539,2126.5,2126.1,2.92287969]
[1773399930504,1.17764539,2126.5,2126.1,1.74702406]
[1773399930715,0.002,2126.5,2126.1,2.92288306]
[1773399931104,0.002,2126.7,2126.2,0.17782657]
[1773399931303,1.17753364,2126.7,2126.2,0.17782657]
[1773399932203,0.60064109,2126.7,2126.3,1.1757513]
[1773399932934,0.60064109,2126.7,2126.3,1.3524065]
[1773399933504,0.002,2126.7,2126.4,0.04702784]
[1773399934127,0.002,2126.7,2126.5,0.17607953]
[1773399934329,0.002,2126.9,2126.5,0.17607953]
[1773399934330,1.77600545,2127.0,2126.5,1.35170644]
[1773399934657,0.002,2127.0,2126.6,0.17607953]
[1773399934829,1.77591734,2127.2,2126.8,0.17551135]
[1773399935012,0.59864109,2127.1,2126.7,1.566]
[1773399936319,0.59864109,2127.1,2126.7,2.7415114]
[1773399937032,0.002,2127.2,2126.8,0.17439484]
[1773399937530,1.77375373,2127.5,2126.8,0.17439484]
[1773399937944,1.77375373,2127.5,2126.8,0.17539484]
[1773399938132,0.002,2126.9,2126.8,0.17539484]
[1773399938337,1.77375373,2127.5,2126.9,1.34922376]
[1773399938503,1.77375373,2127.5,2126.9,1.3492539]
[1773399938832,0.002,2127.1,2126.9,1.3492539]
[1773399939036,0.002,2127.1,2127.0,0.17329886]
[1773399939229,0.002,2127.4,2127.0,0.17329886]
[1773399940824,0.002,2127.4,2126.8,0.17322952]
[1773399940825,0.60064109,2127.4,2126.8,0.17322952]
[1773399941030,0.59864109,2127.3,2126.5,0.001]
[1773399941541,0.59864109,2127.2,2126.5,0.001]
[1773399942034,0.59864109,2127.2,2126.5,0.17270473]
[1773399942338,0.59864109,2127.1,2126.6,1.558]
[1773399942719,1.17536436,2127.0,2126.6,1.558]
[1773399943335,1.77397231,2127.1,2126.6,2.90471574]
[1773399943540,1.17533122,2127.1,2126.6,2.90471574]
[1773399943914,0.59864109,2127.2,2126.6,2.90471574]
[1773399944310,0.59864109,2127.2,2126.7,0.17067175]
[1773399945142,1.77352832,2127.4,2126.8,1.24106819]
[1773399946340,0.5963499,2127.3,2126.8,0.0655933]
[1773399947542,0.5963499,2127.3,2126.6,2.79814743]
[1773399947543,1.77160375,2127.2,2126.6,2.79814743]
[1773399948241,1.77160375,2127.2,2126.6,2.73354025]
[1773399948413,1.77160375,2127.2,2126.7,0.06412152]
[1773399949672,1.77160375,2127.2,2126.7,1.23963182]
[1773399949943,0.5963499,2127.2,2126.7,1.23963182]
[1773399950115,0.5963499,2127.2,2126.8,0.06316741]
[1773399950319,1.77160947,2127.2,2126.8,0.06316741]
[1773399950742,0.5963499,2127.2,2126.8,0.06316741]
[1773399951648,1.17522983,2127.3,2126.8,1.23960705]
[1773399951946,0.002,2127.0,2126.8,1.23960705]
[1773399952150,0.002,2127.2,2126.8,1.23960705]
[1773399953131,1.76247672,2127.4,2126.9,0.06132562]
[1773399954823,1.76243355,2127.4,2127.0,1.23579288]
[1773399955023,0.58728881,2127.4,2127.1,1.564]
[1773399955738,0.58728881,2127.5,2127.1,1.564]
[1773399956053,0.58528881,2127.7,2127.2,0.60259269]
[1773399956548,0.58528881,2127.7,2126.8,4.70245745]
[1773399956549,0.58528881,2127.7,2126.8,0.001]
[1773399956759,1.17508813,2127.5,2126.8,0.001]
[1773399956960,0.58528881,2127.4,2126.8,0.001]
[1773399957727,0.58528881,2127.4,2126.9,1.559]
[1773399959641,0.58528881,2127.2,2126.9,1.559]
[1773399960228,0.58528881,2127.2,2126.8,0.001]
[1773399960449,0.58528881,2127.2,2126.8,1.562]
[1773399961134,0.58528881,2127.2,2126.6,0.60259269]
[1773399961952,0.58528881,2127.0,2126.6,0.60259269]
[1773399962433,0.58528881,2127.0,2126.7,1.561]
[1773399964035,1.17541962,2126.9,2126.5,0.60359269]
[1773399964851,1.76070843,2126.9,2126.5,0.60359269]
[1773399965566,1.76070843,2126.9,2126.6,0.001]
[1773399965567,0.58528881,2126.8,2126.6,0.001]
[1773399965864,1.17541962,2126.9,2126.3,0.001]
[1773399965865,0.58528881,2126.7,2126.3,0.001]
[1773399966063,0.58528881,2126.7,2126.4,0.001]
[1773399966360,1.76087425,2126.6,2126.4,0.001]
[1773399971935,0.58528881,2126.8,2126.4,0.60359269]
[1773399972135,1.76270349,2127.0,2126.4,0.60359269]
[1773399972872,0.002,2127.0,2126.4,0.60359269]
[1773399973558,0.002,2127.0,2126.6,0.60259269]
[1773399973955,0.002,2127.0,2126.7,1.56]
[1773399974151,0.002,2127.0,2126.8,0.60259269]
[1773399974676,0.002,2127.0,2126.7,1.56]
[1773399974845,0.58728881,2127.0,2126.5,0.60259269]
[1773399975046,0.58728881,2127.0,2126.6,1.559]
[1773399975940,1.17541962,2126.9,2126.6,1.559]
[1773399976771,1.76070843,2126.9,2126.6,1.559]
[1773399976980,0.58528881,2126.9,2126.6,1.559]
[1773399977148,4.70311095,2127.2,2126.7,0.60259269]
[1773399977149,1.1772888,2127.2,2126.7,0.60259269]
[1773399978467,0.58728881,2127.2,2126.7,0.60259269]
[1773399978772,0.58728881,2127.2,2126.7,0.60359269]
[1773399979375,0.002,2126.9,2126.7,0.60359269]
[1773399979562,0.002,2126.9,2126.8,1.559]
[1773399982466,0.002,2126.9,2126.8,2.13977116]
[1773399982671,0.002,2127.2,2126.9,0.58077116]
[1773399983954,1.07714657,2127.4,2126.9,0.58077116]
[1773399984350,1.17711378,2127.5,2126.9,0.58077116]
[1773399984773,0.002,2127.5,2127.1,0.58077116]
[1773399984974,1.17497767,2127.7,2127.1,0.58077116]
[1773399985381,1.72240681,2127.8,2127.1,0.58077116]
[1773399985686,0.54745791,2128.1,2127.4,0.58077116]
[1773399985981,0.54745791,2128.1,2127.6,0.58077116]
[1773399986361,1.17470162,2128.2,2127.6,0.58077116]
[1773399986769,1.72215953,2128.2,2127.6,1.75577495]
[1773399987380,1.72215953,2128.2,2127.7,0.58077116]
[1773399988468,0.54745791,2128.2,2127.7,0.58077116]
[1773399988660,1.17667766,2128.3,2127.7,0.58077116]
[1773399988859,1.17667766,2128.3,2127.9,0.58077116]
[1773399989659,0.002,2128.3,2127.9,0.58077116]
[1773399990864,0.002,2128.5,2128.1,0.58077116]
[1773399991159,0.002,2128.5,2128.2,2.13977116]
[1773399995291,0.002,2128.5,2128.3,0.58077116]
[1773399995875,0.54945791,2128.5,2128.2,1.559]
[1773399996077,0.54945791,2128.5,2127.5,4.70014761]
[1773399996078,0.54945791,2128.5,2127.6,0.58077116]
[1773399997163,0.54945791,2128.5,2127.8,0.58077116]
[1773399997164,1.72204915,2128.4,2127.8,0.58077116]
[1773399998995,1.72204915,2128.4,2127.8,0.59094341]
[1773400001300,1.1744616,2128.7,2128.1,0.58077116]
[1773400002261,1.72191951,2128.7,2128.1,0.58077116]
[1773400004483,1.72191951,2128.7,2128.1,1.17473817]
[1773400004789,1.72191951,2128.7,2128.2,0.58077116]
[1773400004984,1.72191951,2128.7,2128.3,1.556]
[1773400005196,1.72191951,2128.7,2128.3,1.557]
[1773400005381,0.002,2128.5,2128.3,1.557]
[1773400006576,1.17653605,2128.5,2128.3,1.557]
[1773400008099,1.17653605,2128.5,2128.3,2.12554257]
[1773400008600,1.17653605,2128.5,2128.3,1.557]
[1773400010577,1.17653605,2128.5,2128.0,0.001]
[1773400010578,0.55958024,2128.4,2128.0,0.001]
[1773400010811,0.55958024,2128.4,2127.8,0.01117225]
[1773400011102,0.55958024,2128.4,2127.4,0.59979165]
[1773400011299,0.54847669,2128.2,2127.4,1.77493453]
[1773400011503,0.54847669,2128.2,2127.4,0.59979165]
[1773400011806,0.54847669,2128.2,2127.5,1.534]
[1773400012195,1.17464643,2128.3,2127.2,1.535]
[1773400012196,0.54847669,2128.1,2127.2,1.535]
[1773400012391,0.54847669,2128.1,2127.1,0.49999165]
[1773400013378,0.54847669,2127.9,2127.1,0.49999165]
[1773400013610,0.54847669,2127.9,2127.2,1.538]
[1773400014109,0.54847669,2127.9,2127.0,0.001]
[1773400014304,0.54847669,2127.9,2127.0,0.60079165]
[1773400015583,0.54847669,2127.7,2127.1,1.541]
[1773400016976,0.54847669,2127.6,2126.9,0.00870651]
[1773400017179,0.54847669,2127.6,2126.7,0.60079165]
[1773400017618,0.54847669,2127.4,2126.7,0.60079165]
[1773400017814,0.54847669,2127.3,2126.7,0.001]
[1773400018527,0.54847669,2127.3,2126.9,0.001]
[1773400019702,0.54847669,2127.3,2126.7,0.001]
[1773400019703,0.54847669,2127.1,2126.7,0.001]
[1773400020207,0.54847669,2127.1,2126.3,0.001]
[1773400020987,0.54847669,2127.1,2126.3,1.77653303]
[1773400021183,0.54847669,2127.1,2126.3,0.60079165]
[1773400021503,0.54847669,2127.1,2126.4,0.59979165]
[1773400021702,0.54847669,2126.9,2126.4,0.59979165]
[1773400021883,0.54847669,2126.9,2126.3,1.541]
[1773400023818,0.54847669,2126.7,2126.3,1.541]
[1773400025709,1.17558544,2126.6,2126.3,2.14079165]
[1773400026112,1.7240478,2126.7,2126.3,2.14079165]
[1773400026316,0.54847669,2127.3,2126.4,0.59979165]
[1773400028012,0.54847669,2127.1,2126.5,0.59979165]
[1773400028217,0.54847669,2127.1,2126.3,0.001]
[1773400028385,0.54847669,2126.9,2126.0,0.001]
[1773400028717,0.54847669,2126.6,2126.0,0.001]
[1773400029331,0.54847669,2126.3,2125.8,0.001]
[1773400030115,1.72428329,2126.2,2125.8,0.001]
[1773400030327,0.54847669,2126.1,2125.8,0.001]
[1773400032015,1.72437458,2126.1,2125.8,0.001]
[1773400032233,1.17589789,2126.1,2125.8,0.001]
[1773400032789,1.17589789,2126.1,2126.0,0.001]
[1773400032988,0.54847669,2126.6,2126.0,0.001]
[1773400033190,1.17758544,2126.7,2126.0,0.60079165]
[1773400033390,0.54847669,2126.6,2126.0,0.60079165]
[1773400034090,1.17564072,2126.5,2126.0,1.77667872]
[1773400034395,0.002,2126.7,2126.1,0.59979165]
[1773400034596,1.17753674,2126.7,2126.1,0.59979165]
[1773400035011,1.17753674,2126.7,2126.0,0.001]
[1773400035012,0.54847669,2126.6,2126.0,0.001]
[1773400036521,1.72411741,2126.5,2126.0,0.001]
[1773400039694,1.17564072,2126.5,2126.0,0.001]
[1773400039893,0.54847669,2126.4,2126.0,0.001]
[1773400040097,0.54847669,2126.4,2125.8,0.001]
[1773400042230,0.56323649,2126.2,2125.8,0.001]
[1773400042422,1.1757513,2126.3,2125.8,0.001]
[1773400043120,0.56323649,2126.2,2125.8,0.001]
[1773400043523,1.1757513,2126.3,2125.8,0.57293075]
[1773400044139,1.73898779,2126.3,2125.8,0.57293075]
[1773400045106,1.73898779,2126.3,2125.8,0.001]
[1773400045607,4.70205623,2126.8,2125.8,0.57293075]
[1773400045608,1.17559151,2126.6,2125.8,0.57293075]
[1773400045828,1.17559151,2126.6,2126.1,0.57193075]
[1773400046031,0.002,2126.2,2126.1,0.57193075]
[1773400046618,0.002,2126.4,2126.1,0.57193075]
[1773400047317,0.002,2126.4,2126.2,1.74773735]
[1773400047714,0.002,2126.4,2126.3,0.57193075]
[1773400048025,0.002,2126.7,2126.3,0.57193075]
[1773400048405,0.002,2126.7,2126.4,1.545]
[1773400049536,0.002,2126.7,2126.5,0.57193075]
[1773400049838,0.002,2126.9,2126.5,0.57193075]
[1773400050045,0.002,2127.2,2126.5,0.57193075]
[1773400050515,0.002,2127.2,2126.4,2.72064103]
[1773400050516,1.17504644,2127.6,2126.7,0.57193075]
[1773400050724,1.17501832,2127.7,2126.7,0.57193075]
[1773400051639,1.17501832,2127.7,2127.0,0.57193075]
[1773400051946,0.56323649,2128.0,2127.2,0.57193075]
[1773400051947,1.17486724,2127.9,2127.2,0.57193075]
[1773400053125,1.73810373,2127.9,2127.2,0.57193075]
[1773400053925,1.73810373,2127.9,2127.2,1.74714082]
[1773400056445,1.73810373,2127.9,2127.3,1.548]
[1773400056446,0.56323649,2127.8,2127.3,1.548]
[1773400057118,0.56323649,2127.8,2127.0,0.57193075]
[1773400058346,0.56323649,2127.8,2127.1,1.548]
[1773400058347,1.17497767,2127.7,2127.1,1.548]
[1773400058642,0.56323649,2127.6,2127.1,1.548]
[1773400059049,0.56323649,2127.6,2127.1,1.549]
[1773400060530,1.17508813,2127.5,2127.1,1.549]
[1773400061143,1.73832462,2127.5,2127.1,1.549]
[1773400062150,0.56323649,2127.4,2126.2,1.1758066]
[1773400062333,0.56323649,2127.4,2126.0,0.23268221]
[1773400062520,0.58010714,2127.2,2126.1,3.86303244]
[1773400063346,0.58010714,2127.1,2126.1,1.544]
[1773400063735,0.58010714,2127.0,2126.1,1.544]
[1773400064435,0.58010714,2126.8,2126.1,2.71980904]
[1773400065749,0.58010714,2126.8,2126.2,1.533]
[1773400065950,0.58010714,2126.8,2126.0,0.001]
[1773400066142,0.58010714,2126.8,2126.1,1.534]
[1773400066548,0.58010714,2126.6,2126.1,1.534]
[1773400068255,0.58010714,2126.6,2126.0,0.001]
[1773400068552,1.17564072,2126.5,2126.0,0.001]
[1773400068753,0.58010714,2126.4,2126.0,0.001]
[1773400069464,0.58010714,2126.4,2125.8,0.001]
[1773400069664,0.57960714,2125.9,2124.6,4.70661227]
[1773400069959,0.57960714,2125.9,2124.8,1.17756725]
[1773400070651,0.57960714,2125.7,2124.8,0.001]
[1773400071358,4.70411139,2125.9,2124.8,1.912274]
[1773400071359,1.75561846,2125.9,2124.8,1.912274]
[1773400072158,0.57960714,2125.8,2124.9,1.515]
[1773400072655,0.57960714,2125.8,2125.0,0.001]
[1773400072840,0.57960714,2125.6,2125.0,1.17747058]
[1773400073240,0.57960714,2125.6,2125.0,0.001]
[1773400074981,1.75579065,2125.6,2125.0,0.001]
[1773400077475,1.17800539,2125.9,2125.0,1.912274]
[1773400077863,1.75761253,2125.9,2125.0,1.912274]
[1773400079468,1.75761253,2125.9,2125.1,1.17641522]
[1773400080168,0.57960714,2125.8,2125.0,3.08871198]
[1773400080359,0.57960714,2125.8,2125.0,1.17746201]
[1773400080549,0.57960714,2125.8,2125.0,0.001]
[1773400080746,0.57960714,2125.8,2125.1,1.533]
[1773400081672,0.57960714,2125.6,2125.0,0.001]
[1773400082970,0.57960714,2125.6,2124.8,0.001]
[1773400083175,0.57960714,2125.6,2124.5,0.001]
[1773400083747,0.57910714,2125.4,2124.5,0.001]
[1773400084185,0.57910714,2125.4,2124.6,1.505]
[1773400084544,0.57910714,2125.4,2124.6,3.416274]
[1773400084957,0.57910714,2125.4,2124.6,1.505]
[1773400085277,0.57910714,2125.4,2125.0,0.001]
[1773400085853,1.75541166,2125.3,2125.0,0.001]
[1773400086411,5.28378271,2125.6,2125.0,0.001]
[1773400086884,0.57910714,2125.5,2125.0,0.001]
[1773400087849,1.75723378,2125.7,2125.0,0.001]
[1773400088048,0.002,2125.7,2125.0,0.001]
[1773400088274,0.002,2125.7,2125.2,1.911274]
[1773400088583,0.58110714,2125.9,2125.3,1.523]
[1773400088884,1.75708367,2125.9,2125.3,1.523]
[1773400089088,1.17785423,2126.2,2125.5,1.911274]
[1773400089383,1.75696137,2126.2,2125.3,1.523]
[1773400090083,1.75696137,2126.2,2125.4,1.17624917]
[1773400091565,0.57910714,2126.1,2125.5,1.533]
[1773400092258,1.75501748,2126.1,2125.5,2.70914069]
[1773400092452,0.002,2126.2,2125.5,2.70914069]
[1773400092693,1.17781583,2126.2,2125.5,2.70914069]
[1773400092899,1.75484473,2126.4,2125.5,2.70914069]
[1773400094083,0.57910714,2126.3,2125.5,2.70914069]
[1773400094482,1.75489102,2126.3,2125.5,2.70914069]
[1773400094687,1.75487346,2126.3,2125.5,2.70914069]
[1773400095592,0.57910714,2126.2,2125.5,2.70914069]
[1773400096100,0.57910714,2126.2,2125.6,1.543]
[1773400096305,0.57910714,2126.2,2125.4,4.70487204]
[1773400096306,0.57910714,2126.2,2125.4,1.17621243]
[1773400096491,0.57910714,2126.0,2125.5,1.543]
[1773400097878,0.58110714,2126.0,2125.5,1.543]
[1773400098103,0.58110714,2126.0,2125.0,0.001]
[1773400098590,0.57910714,2125.8,2125.0,0.001]
[1773400099491,1.17597252,2125.9,2125.1,1.547]
[1773400099492,0.57910714,2125.7,2125.1,1.547]
[1773400099682,0.57910714,2125.7,2124.8,0.001]
[1773400099883,0.57860714,2125.6,2124.8,1.548]
[1773400100083,0.57860714,2125.6,2124.5,0.001]
[1773400100488,0.57860714,2125.4,2124.5,0.001]
[1773400100689,0.57860714,2125.3,2124.5,0.001]
[1773400101310,0.57860714,2125.3,2124.6,1.549]
[1773400102506,0.57860714,2125.1,2124.6,1.549]
[1773400103398,0.57860714,2125.1,2124.6,2.72568831]
[1773400103719,0.57860714,2125.1,2124.6,1.549]
[1773400103898,0.57860714,2125.1,2124.6,2.72564862]
[1773400104212,0.57860714,2125.6,2124.6,2.72564862]
[1773400104519,0.57860714,2125.3,2124.6,2.72564862]
[1773400106720,1.7549329,2125.3,2124.6,2.72564862]
[1773400108618,0.57860714,2125.2,2124.6,2.72564862]
[1773400109326,1.75496953,2125.2,2124.6,2.72564862]
[1773400109906,0.57860714,2125.1,2124.6,2.72564862]
[1773400110610,0.57860714,2125.1,2124.8,0.001]
[1773400111015,0.57810714,2124.9,2124.6,1.549]
[1773400112350,0.57810714,2124.9,2124.5,0.001]
[1773400112896,0.57810714,2124.9,2124.5,1.17774071]
[1773400113128,0.57810714,2124.9,2124.5,0.001]
[1773400113129,0.57810714,2124.8,2124.5,0.001]
[1773400113830,0.57810714,2124.8,2124.1,0.001]
[1773400115028,0.57810714,2124.6,2124.1,0.001]
[1773400116125,0.57810714,2124.6,2124.2,0.001]
[1773400116840,0.57810714,2124.6,2124.1,0.001]
[1773400117013,0.57810714,2125.1,2124.5,1.17674746]
[1773400117405,0.57810714,2125.1,2124.6,1.558]
[1773400118317,0.57810714,2125.3,2124.6,1.557]
[1773400118650,0.57810714,2125.3,2124.7,0.001]
[1773400119336,0.57810714,2125.3,2124.8,0.001]
[1773400119644,0.57810714,2125.2,2124.8,0.001]
[1773400119819,0.57810714,2125.2,2124.9,0.001]
[1773400120023,0.57810714,2125.2,2124.8,0.001]
[1773400124154,0.57810714,2125.1,2124.8,0.001]
[1773400124335,0.57810714,2125.1,2124.6,1.557]
[1773400124740,0.57810714,2125.1,2124.7,0.001]
[1773400124925,0.002,2125.0,2124.7,0.001]
[1773400125125,0.002,2125.0,2124.6,2.73367794]
[1773400125126,0.002,2125.0,2124.8,0.001]
[1773400125330,0.002,2125.0,2124.7,0.001]
[1773400127632,0.58010714,2125.0,2124.6,2.73367794]
[1773400127827,0.58010714,2125.0,2124.7,0.001]
[1773400128148,0.002,2125.0,2124.7,0.001]
[1773400128346,1.75443935,2125.3,2124.8,0.001]
[1773400128524,1.75443935,2125.3,2124.7,0.001]
[1773400128725,0.57810714,2125.2,2124.7,0.001]
[1773400130260,0.57810714,2125.0,2124.7,0.001]
[1773400131253,0.57810714,2125.3,2124.8,0.001]
[1773400131452,0.57810714,2125.3,2124.7,0.001]
[1773400132056,0.57810714,2125.3,2124.6,2.73365737]
[1773400132267,0.57810714,2125.3,2124.7,0.001]
[1773400132268,0.57810714,2125.2,2124.7,0.001]
[1773400132680,0.57810714,2125.0,2124.3,0.001]
[1773400132846,0.57810714,2124.9,2124.3,0.001]
[1773400133905,0.57810714,2124.9,2124.3,2.7358322]
[1773400134381,0.57810714,2124.8,2124.3,2.7358322]
[1773400136150,0.57810714,2125.1,2124.3,2.7358322]
[1773400136355,1.7545229,2125.1,2124.3,2.7358322]
[1773400136577,0.57810714,2125.1,2124.3,2.7358322]
[1773400136853,0.57810714,2125.0,2124.3,2.7358322]
[1773400138280,0.57810714,2124.9,2124.3,2.7358322]
[1773400139185,0.57810714,2124.9,2124.5,0.001]
[1773400140809,0.57810714,2124.8,2124.5,0.001]
[1773400141013,0.57810714,2124.8,2124.4,1.559]
[1773400141231,0.57810714,2124.8,2124.1,0.001]
[1773400141570,0.57760714,2124.7,2124.1,0.001]
[1773400141901,0.57760714,2124.7,2124.1,1.17796701]
[1773400142418,0.57760714,2124.7,2124.2,1.56]
[1773400142611,1.17656527,2124.9,2124.2,2.73689072]
[1773400142612,0.57760714,2124.9,2124.2,2.73689072]
[1773400143289,0.002,2125.0,2124.2,2.73689072]
[1773400143906,0.57760714,2124.9,2124.2,1.17689072]
[1773400144215,0.57760714,2124.9,2124.3,1.56]
[1773400144724,0.57760714,2124.8,2124.3,2.73681927]
[1773400144893,0.57760714,2124.8,2124.3,2.73685721]
[1773400145104,0.57760714,2124.8,2124.3,1.56]
[1773400145337,0.57760714,2124.8,2124.1,0.001]
[1773400145645,0.57760714,2124.7,2124.1,0.001]
[1773400146534,0.57760714,2124.7,2124.1,1.562]
[1773400146912,0.57760714,2124.5,2124.1,1.562]
[1773400148108,0.57760714,2124.5,2124.1,2.73894265]
[1773400148322,0.57760714,2124.5,2124.1,1.562]
[1773400149143,0.57760714,2124.3,2124.1,1.562]
[1773400149914,0.57760714,2124.5,2124.1,2.73895824]
[1773400151218,1.75417708,2124.9,2124.1,2.73895824]
[1773400151439,0.57760714,2124.8,2124.1,2.73895824]
[1773400152109,0.57760714,2124.8,2124.3,0.001]
[1773400152547,0.57960714,2124.6,2124.3,0.001]
[1773400153058,0.002,2124.6,2124.3,0.001]
[1773400156533,0.55076099,2124.6,2124.3,0.001]
[1773400157854,0.54876099,2124.5,2124.3,0.001]
[1773400160369,0.54876099,2124.4,2124.1,0.001]
[1773400161635,0.54876099,2124.4,2124.2,1.562]
[1773400162366,1.72556703,2124.4,2124.2,1.562]
[1773400162569,0.54876099,2124.4,2124.2,1.562]
[1773400163039,1.72746269,2124.6,2124.2,2.73891035]
[1773400163239,0.55076099,2124.6,2124.2,2.73891035]
[1773400163667,0.54876099,2124.5,2124.2,1.562]
[1773400163867,0.54876099,2124.5,2124.1,0.001]
[1773400165073,0.002,2124.6,2124.1,0.001]
[1773400165366,0.002,2124.6,2124.2,1.563]
[1773400165755,1.72745672,2124.6,2124.2,1.563]
[1773400165962,0.54876099,2124.5,2124.2,1.563]
[1773400166268,0.002,2124.6,2124.2,1.563]
[1773400166468,0.002,2124.6,2124.2,2.73986065]
[1773400166969,0.002,2124.6,2124.5,0.001]
[1773400167165,0.55076099,2124.6,2124.2,1.563]
[1773400167365,0.55076099,2124.6,2124.3,0.001]
[1773400168480,0.002,2124.6,2124.3,0.001]
[1773400171476,0.002,2124.6,2124.1,4.70886921]
[1773400171477,0.55076099,2124.6,2124.1,0.001]
[1773400171687,0.55076099,2124.6,2124.1,1.1779688]
[1773400172686,1.17870129,2124.6,2124.2,1.564]
[1773400172880,0.54876099,2124.5,2124.2,1.564]
[1773400174790,0.54876099,2124.4,2124.2,1.564]
[1773400175102,0.54876099,2124.4,2124.1,0.001]
[1773400175307,0.54876099,2124.4,2124.2,1.566]
[1773400176010,0.54876099,2124.4,2123.9,1.17703479]
[1773400176792,0.54876099,2124.4,2123.6,4.70895486]
[1773400176993,0.54876099,2124.3,2123.6,4.70895486]
[1773400177412,0.54876099,2124.3,2123.7,1.566]
[1773400178910,0.54876099,2124.3,2123.8,1.17713532]
[1773400179112,0.54876099,2124.5,2123.8,1.17713532]
[1773400180713,0.54876099,2124.5,2124.0,0.001]
[1773400180911,0.002,2124.4,2124.0,0.001]
[1773400181298,0.52191483,2124.4,2124.0,0.001]
[1773400183714,0.51991483,2124.3,2124.0,0.001]
[1773400185388,0.51991483,2124.2,2124.0,0.001]
[1773400187218,0.51991483,2124.2,2124.1,1.57]
[1773400187516,0.52191483,2124.4,2124.1,1.57]
[1773400187903,0.51991483,2124.3,2124.1,1.57]
[1773400188225,4.7088463,2124.6,2124.1,2.74692166]
[1773400188226,0.52191483,2124.6,2124.1,2.74692166]
[1773400190300,0.51991483,2124.5,2124.1,1.57]
[1773400191310,0.51991483,2124.5,2124.0,0.001]
[1773400191913,0.51991483,2124.2,2124.0,0.001]
[1773400192590,0.51991483,2124.2,2124.0,1.572]
[1773400194607,1.17691918,2124.2,2124.0,1.572]
[1773400194920,0.51991483,2124.1,2124.0,1.572]
[1773400195625,0.52191483,2124.4,2124.0,2.749006]
[1773400198044,0.002,2124.4,2124.0,2.749006]
[1773400199746,0.002,2124.4,2124.1,1.572]
[1773400200248,0.52191483,2124.4,2124.1,1.572]
[1773400200449,0.52191483,2124.4,2124.0,0.001]
[1773400201020,0.52191483,2124.4,2124.0,1.1780237]
[1773400201221,0.52191483,2124.4,2124.0,0.001]
[1773400201527,4.70812848,2124.9,2124.0,0.001]
[1773400201528,0.002,2125.2,2124.5,0.51087704]
[1773400201725,0.002,2125.2,2124.4,0.51087704]
[1773400201930,0.004,2125.2,2124.4,0.51087704]
[1773400203148,0.004,2125.2,2124.7,0.51017375]
[1773400203329,0.002,2125.2,2124.9,0.51017375]
[1773400203534,0.10100097,2125.3,2124.9,0.51017375]
[1773400203851,0.5156167,2125.7,2124.9,0.50982816]
[1773400205246,0.002,2125.7,2125.1,0.50948653]
[1773400205450,0.5176167,2125.9,2125.2,0.50948653]
[1773400206469,0.002,2126.0,2125.5,0.50914883]
[1773400206660,0.002,2126.0,2125.6,2.08114883]
[1773400207171,0.002,2126.0,2125.7,1.17608317]
[1773400208298,0.002,2126.0,2125.7,1.69167215]
[1773400208456,0.002,2126.2,2125.9,0.51558898]
[1773400208789,0.002,2126.5,2125.9,0.51558898]
[1773400209268,0.002,2126.5,2126.1,0.51558898]
[1773400209582,0.5156167,2126.7,2126.2,1.572]
[1773400210279,1.6910202,2127.0,2126.2,2.08758898]
[1773400210576,1.6910202,2127.0,2126.3,0.51558898]
[1773400211163,1.6910202,2127.0,2126.4,1.17569601]
[1773400211581,0.5156167,2126.9,2126.3,1.69129841]
[1773400213869,0.5156167,2126.9,2126.0,1.572]
[1773400213870,0.5156167,2126.7,2126.0,1.572]
[1773400215385,0.5156167,2126.7,2125.5,0.51558898]
[1773400215595,0.5156167,2126.7,2125.3,0.51558898]
[1773400215596,0.5156167,2126.6,2125.3,0.51558898]
[1773400215901,0.5156167,2126.4,2125.4,1.17624917]
[1773400216600,0.5156167,2126.4,2125.5,1.572]
[1773400217468,0.5156167,2126.4,2125.6,0.51558898]
[1773400217689,1.17564072,2126.5,2125.6,0.51558898]
[1773400217872,1.17564072,2126.5,2125.8,0.51558898]
[1773400218200,0.5156167,2126.4,2125.7,1.69167215]
[1773400218694,0.5156167,2126.4,2125.7,0.51558898]
[1773400218895,0.5156167,2126.4,2125.7,1.571]
[1773400219070,1.17564072,2126.5,2125.3,0.51558898]
[1773400219267,0.5156167,2126.7,2125.7,0.51558898]
[1773400220068,0.5156167,2126.5,2125.8,1.17602784]
[1773400220288,0.5156167,2126.5,2125.9,1.571]
[1773400222116,0.002,2126.3,2125.9,1.571]
[1773400223108,0.47847779,2126.3,2125.6,0.001]
[1773400224296,1.1758066,2126.2,2125.6,0.001]
[1773400224497,1.1758066,2126.2,2125.6,2.04374074]
[1773400225602,1.17779087,2126.3,2125.7,0.47174074]
[1773400225924,0.47647779,2126.2,2125.6,1.572]
[1773400226599,1.1758619,2126.1,2125.6,1.572]
[1773400226825,0.47647779,2126.0,2125.6,1.572]
[1773400229098,1.17597252,2125.9,2125.6,1.572]
[1773400233110,1.65245031,2125.9,2125.6,1.572]
[1773400233619,1.65245031,2125.9,2125.4,0.47274074]
[1773400234821,1.65245031,2125.9,2125.5,1.568]
[1773400234822,0.47647779,2125.8,2125.5,1.568]
[1773400235219,1.17608317,2125.7,2125.5,1.568]
[1773400235627,1.17608317,2125.7,2125.6,0.001]
[1773400236699,0.47647779,2125.6,2125.1,0.47274074]
[1773400237102,0.47647779,2125.6,2124.7,0.47073385]
[1773400237343,0.47647779,2125.4,2124.7,0.47073385]
[1773400237502,0.47647779,2125.4,2124.2,0.0011]
[1773400237709,0.47647779,2125.2,2124.3,0.47073385]
[1773400238008,0.47647779,2125.2,2124.4,0.47050319]
[1773400239021,0.47647779,2125.4,2124.4,0.47050319]
[1773400239403,1.65276733,2125.4,2124.6,0.47027518]
[1773400240898,9.7743654,2126.0,2124.6,0.47027518]
[1773400240899,1.65245031,2125.9,2124.6,0.47027518]
[1773400241103,0.47647779,2125.8,2124.6,0.47027518]
[1773400241538,0.47647779,2125.6,2124.8,0.46982699]